fUST/lending_fUST_20250708
["ID","MTS","AMOUNT","RATE_DAILY","PERIOD"]
[370296400,1751941841199,-1236.29,0.00019726,2]
[370296402,1751941841209,-460.0,0.00019726,2]
[370296404,1751941841218,-1462.33,0.00019726,2]
[370296406,1751941841228,-460.0,0.00019726,2]
[370296408,1751941841237,-460.0,0.00019726,2]
[370296410,1751941841247,-717.05,0.00019726,2]
[370296412,1751941841256,-460.0,0.00019726,2]
[370296414,1751941841265,-460.0,0.00019726,2]
[370296416,1751941841275,-1922.8,0.00019726,2]
[370296418,1751941841286,-1081.03,0.00019726,2]
[370296420,1751941841295,-460.0,0.00019726,2]
[370296422,1751941841304,-460.0,0.00019726,2]
[370296424,1751941841315,-460.0,0.00019726,2]
[370296425,1751941841324,-460.0,0.00019726,2]
[370296427,1751941841333,-460.0,0.00019726,2]
[370296429,1751941841342,-460.0,0.00019726,2]
[370296431,1751941841352,-460.0,0.00019726,2]
[370296433,1751941841361,-460.0,0.00019726,2]
[370296434,1751941841371,-460.0,0.00019726,2]
[370296435,1751941841380,-460.0,0.00019726,2]
[370296436,1751941841389,-460.0,0.00019726,2]
[370296437,1751941841400,-460.0,0.00019726,2]
[370296438,1751941841409,-1549.31,0.00019726,2]
[370296439,1751941841419,-662.41,0.00019726,2]
[370296440,1751941841428,-460.0,0.00019726,2]
[370296441,1751941841437,-1017.32,0.00019726,2]
[370296442,1751941841447,-1411.97,0.00019726,2]
[370296443,1751941841456,-460.0,0.00019726,2]
[370296444,1751941841467,-460.0,0.00019726,2]
[370296445,1751941841477,-460.0,0.00019726,2]
[370296446,1751941841488,-460.0,0.00019726,2]
[370296447,1751941841497,-460.0,0.00019726,2]
[370296448,1751941841506,-460.0,0.00019726,2]
[370296449,1751941841517,-460.0,0.00019726,2]
[370296450,1751941841527,-1059.99,0.00019726,2]
[370296451,1751941841537,-460.0,0.00019726,2]
[370296453,1751941841546,-716.37,0.00019726,2]
[370296455,1751941841556,-460.0,0.00019726,2]
[370296457,1751941841565,-460.0,0.00019726,2]
[370296459,1751941841574,-153.8841408,0.00019726,2]
[370296461,1751941841583,-153.0,0.00019726,2]
[370296463,1751941841592,-153.0,0.00019726,2]
[370296465,1751941841601,-153.0,0.00019726,2]
[370296467,1751941841610,-153.0,0.00019726,2]
[370296469,1751941841619,-177.7959578,0.00019781,2]
[370296471,1751941841629,-159.5204994,0.00019781,2]
[370296473,1751941841638,-576.1435385,0.00019781,2]
[370296475,1751941841647,-177.7959578,0.00019781,2]
[370296477,1751941841656,-576.1435385,0.00019781,2]
[370296479,1751941841666,-177.7959578,0.00019781,2]
[370296481,1751941841675,-177.7959578,0.00019781,2]
[370296483,1751941841685,-576.1435385,0.00019781,2]
[370296485,1751941841694,-355.7941216,0.00019781,2]
[370296487,1751941841704,-574.3299114,0.00019781,2]
[370296489,1751941841713,-743.5337241,0.000198,2]
[370296491,1751941841722,-177.7959578,0.00019808,2]
[370296493,1751941841732,-159.5204994,0.00019808,2]
[370296495,1751941841743,-576.1435385,0.00019808,2]
[370296497,1751941841752,-159.5204994,0.00019808,2]
[370296499,1751941841762,-576.1435385,0.00019808,2]
[370296501,1751941841771,-150.0,0.00019858,2]
[370296503,1751941841781,-2891.12,0.00019999,2]
[370296505,1751941841790,-1359.51,0.00019999,2]
[370296507,1751941841799,-460.0,0.0002,2]
[370296509,1751941841809,-151.0,0.0002,2]
[370296511,1751941841819,-460.0,0.0002,2]
[370296513,1751941841829,-151.0,0.0002,2]
[370296515,1751941841838,-460.0,0.0002,2]
[370296517,1751941841848,-151.0,0.0002,2]
[370296519,1751941841857,-152.043225,0.0002,2]
[370296521,1751941841867,-460.0,0.0002,2]
[370296523,1751941841876,-460.0,0.0002,2]
[370296525,1751941841885,-151.0,0.0002,2]
[370296527,1751941841895,-460.0,0.0002,2]
[370296529,1751941841905,-460.0,0.0002,2]
[370296531,1751941841915,-2495.0,0.0002,2]
[370296533,1751941841924,-2418.25,0.0002,2]
[370296535,1751941841933,-460.0,0.0002,2]
[370296537,1751941841942,-573.4,0.0002,2]
[370296539,1751941841952,-460.0,0.0002,2]
[370296541,1751941841962,-614.8,0.0002,2]
[370296543,1751941841971,-460.0,0.0002,2]
[370296545,1751941841980,-460.0,0.0002,2]
[370296547,1751941841989,-676.26,0.0002,2]
[370296549,1751941841999,-460.0,0.0002,2]
[370296551,1751941842008,-467.51,0.0002,2]
[370296553,1751941842017,-1236.29,0.0002,2]
[370296555,1751941842027,-460.0,0.0002,2]
[370296557,1751941842036,-1462.33,0.0002,2]
[370296559,1751941842045,-460.0,0.0002,2]
[370296561,1751941842056,-460.0,0.0002,2]
[370296563,1751941842065,-717.05,0.0002,2]
[370296565,1751941842074,-460.0,0.0002,2]
[370296567,1751941842083,-460.0,0.0002,2]
[370296569,1751941842094,-1922.8,0.0002,2]
[370296571,1751941842103,-1081.03,0.0002,2]
[370296573,1751941842112,-460.0,0.0002,2]
[370296575,1751941842124,-460.0,0.0002,2]
[370296577,1751941842135,-460.0,0.0002,2]
[370296579,1751941842145,-460.0,0.0002,2]
[370296581,1751941842154,-460.0,0.0002,2]
[370296583,1751941842163,-460.0,0.0002,2]
[370296585,1751941842172,-460.0,0.0002,2]
[370296587,1751941842182,-460.0,0.0002,2]
[370296589,1751941842191,-460.0,0.0002,2]
[370296591,1751941842201,-460.0,0.0002,2]
[370296593,1751941842211,-460.0,0.0002,2]
[370296595,1751941842221,-460.0,0.0002,2]
[370296597,1751941842230,-1549.31,0.0002,2]
[370296599,1751941842240,-662.41,0.0002,2]
[370296601,1751941842249,-460.0,0.0002,2]
[370296603,1751941842260,-1017.32,0.0002,2]
[370296605,1751941842269,-1411.97,0.0002,2]
[370296607,1751941842279,-460.0,0.0002,2]
[370296609,1751941842289,-460.0,0.0002,2]
[370296611,1751941842298,-460.0,0.0002,2]
[370296613,1751941842307,-460.0,0.0002,2]
[370296615,1751941842316,-460.0,0.0002,2]
[370296617,1751941842325,-460.0,0.0002,2]
[370296619,1751941842335,-460.0,0.0002,2]
[370296621,1751941842344,-1059.99,0.0002,2]
[370296623,1751941842353,-460.0,0.0002,2]
[370296625,1751941842362,-716.37,0.0002,2]
[370296627,1751941842371,-460.0,0.0002,2]
[370296629,1751941842380,-460.0,0.0002,2]
[370296631,1751941842390,-646.0,0.00020115,2]
[370296633,1751941842399,-2153.0,0.00020115,2]
[370296635,1751941842411,-407.0,0.00020115,2]
[370296637,1751941842420,-1003.66218437,0.00020263,2]
[370296639,1751941842429,-460.0,0.00020273,2]
[370296641,1751941842439,-460.0,0.00020273,2]
[370296643,1751941842449,-460.0,0.00020273,2]
[370296645,1751941842459,-464.10117984,0.00020273,2]
[370296647,1751941842471,-460.0,0.00020273,2]
[370296649,1751941842480,-460.0,0.00020273,2]
[370296651,1751941842490,-460.0,0.00020273,2]
[370296653,1751941842500,-2495.0,0.00020273,2]
[370296655,1751941842511,-2418.25,0.00020273,2]
[370296657,1751941842520,-460.0,0.00020273,2]
[370296659,1751941842531,-2732.48705673,0.00020273,2]
[370296661,1751941842546,-158.63294327,0.00020273,2]
[370296663,1751941842556,-573.4,0.00020273,2]
[370296666,1751941842566,-78.23871767,0.00020273,2]
[370296668,1751941842577,-381.76128233,0.00020273,2]
[370296670,1751941842587,-614.8,0.00020273,2]
[370296672,1751941842596,-460.0,0.00020273,2]
[370296674,1751941842605,-265.6481965,0.00020273,2]
[370296676,1751941842616,-194.3518035,0.00020273,2]
[370296678,1751941842625,-156.4645965,0.00020273,2]
[370296680,1751941842637,-260.12376568,0.00020273,2]
[370296780,1751941843472,-460.0,0.00019726,2]
[370296782,1751941843481,-151.0,0.00019726,2]
[370296784,1751941843491,-460.0,0.0002,2]
[370296786,1751941843501,-967.0,0.00020046,2]
[370296788,1751941843511,-259.67163782,0.00020273,2]
[370296790,1751941843520,-460.0,0.00020273,2]
[370296792,1751941843529,-467.51,0.00020273,2]
[370296794,1751941843538,-1056.14933857,0.00020273,2]
[370296797,1751941843552,-180.14066143,0.00020273,2]
[370296799,1751941843563,-460.0,0.00020273,2]
[370296801,1751941843572,-1462.33,0.00020273,2]
[370296803,1751941843581,-460.0,0.00020273,2]
[370296805,1751941843591,-1359.51,0.00020273,2]
[370296807,1751941843599,-460.0,0.00020273,2]
[370296809,1751941843608,-717.05,0.00020273,2]
[370296811,1751941843617,-460.0,0.00020273,2]
[370296813,1751941843630,-460.0,0.00020273,2]
[370296814,1751941843639,-1922.8,0.00020273,2]
[370296817,1751941843649,-1081.03,0.00020273,2]
[370296818,1751941843659,-460.0,0.00020273,2]
[370296821,1751941843668,-460.0,0.00020273,2]
[370296823,1751941843679,-460.0,0.00020273,2]
[370296825,1751941843690,-460.0,0.00020273,2]
[370296827,1751941843700,-460.0,0.00020273,2]
[370296829,1751941843709,-460.0,0.00020273,2]
[370296831,1751941843718,-367.47907423,0.00020273,2]
[370296833,1751941843731,-92.52092577,0.00020273,2]
[370296835,1751941843740,-460.0,0.00020273,2]
[370296837,1751941843749,-460.0,0.00020273,2]
[370296839,1751941843758,-460.0,0.00020273,2]
[370296841,1751941843767,-460.0,0.00020273,2]
[370296843,1751941843777,-460.0,0.00020273,2]
[370296845,1751941843787,-1549.31,0.00020273,2]
[370296847,1751941843797,-662.41,0.00020273,2]
[370296849,1751941843806,-281.11357791,0.00020273,2]
[370297094,1751941846557,-178.88642209,0.00020273,2]
[370297095,1751941846567,-1017.32,0.00020273,2]
[370297096,1751941846578,-1411.97,0.00020273,2]
[370297097,1751941846587,-460.0,0.00020273,2]
[370297099,1751941846597,-460.0,0.00020273,2]
[370297101,1751941846606,-460.0,0.00020273,2]
[370297103,1751941846615,-460.0,0.00020273,2]
[370297105,1751941846625,-460.0,0.00020273,2]
[370297107,1751941846634,-460.0,0.00020273,2]
[370297109,1751941846644,-460.0,0.00020273,2]
[370297111,1751941846653,-1059.99,0.00020273,2]
[370297113,1751941846663,-460.0,0.00020273,2]
[370297115,1751941846673,-716.37,0.00020273,2]
[370297117,1751941846683,-460.0,0.00020273,2]
[370297119,1751941846692,-460.0,0.00020273,2]
[370297121,1751941846701,-460.0,0.00020273,2]
[370297123,1751941846710,-200.0,0.0002051,2]
[370297125,1751941846719,-460.0,0.00020547,2]
[370297127,1751941846729,-151.0,0.00020547,2]
[370297129,1751941846738,-460.0,0.00020547,2]
[370297131,1751941846747,-151.0,0.00020547,2]
[370297133,1751941846756,-538.28760785,0.00020547,2]
[370297135,1751941846766,-151.0,0.00020547,2]
[370297137,1751941846776,-460.0,0.00020547,2]
[370297139,1751941846786,-613.9345423,0.00020547,2]
[370301960,1751942832124,-671.3407008,0.00018171,2]
[370301961,1751942832651,-246.816997,0.0001829,2]
[370301962,1751942832676,-621.69155396,0.000189,2]
[370301963,1751942832701,-823.54215071,0.00018952,2]
[370301964,1751942832725,-300.0,0.00019071,2]
[370301965,1751942832748,-295.0,0.00019072,2]
[370301966,1751942832771,-1200.0,0.00019072,2]
[370301967,1751942832790,-300.0,0.00019072,2]
[370301968,1751942832817,-500.0,0.00019072,2]
[370301969,1751942832839,-541.55648341,0.00019072,2]
[370301970,1751942832860,-614.82419581,0.00019072,2]
[370301971,1751942832881,-500.0,0.00019072,2]
[370301972,1751942832902,-369.85698486,0.00019072,2]
[370301973,1751942832927,-500.0,0.00019077,2]
[370301974,1751942832950,-500.0,0.00019077,2]
[370301975,1751942832975,-210.4408381,0.00019077,2]
[370301976,1751942832996,-652.70076459,0.00019078,2]
[370301977,1751942833019,-16919.16075151,0.00019078,2]
[370301978,1751942833039,-444.28,0.00019168,3]
[370301979,1751942833060,-222.14,0.00019168,3]
[370301980,1751942833082,-666.42,0.00019168,3]
[370301981,1751942833102,-463.8892155,0.00019178,2]
[370301982,1751942833123,-460.0,0.00019178,2]
[370301983,1751942833142,-461.65622986,0.00019178,2]
[370301984,1751942833163,-462.82368717,0.00019178,2]
[370301985,1751942833185,-460.0,0.00019178,2]
[370301986,1751942833207,-460.0,0.00019178,2]
[370301987,1751942833227,-515.11250648,0.00019178,2]
[370301988,1751942833248,-460.0,0.00019178,2]
[370301989,1751942833268,-460.0,0.00019178,2]
[370301990,1751942833290,-538.11047525,0.00019178,2]
[370301991,1751942833312,-461.53770374,0.00019178,2]
[370301992,1751942833333,-460.0,0.00019178,2]
[370301993,1751942833354,-462.20882336,0.00019178,2]
[370301994,1751942833376,-462.28702635,0.00019178,2]
[370301995,1751942833401,-460.0,0.00019178,2]
[370301996,1751942833423,-460.0,0.00019178,2]
[370301997,1751942833447,-462.8020998,0.00019178,2]
[370301998,1751942833469,-460.53970259,0.00019178,2]
[370301999,1751942833492,-461.38792092,0.00019178,2]
[370302000,1751942833515,-462.4623773,0.00019178,2]
[370302001,1751942833538,-476.19092672,0.00019178,2]
[370302002,1751942833560,-304.41432006,0.00019178,2]
[370302003,1751942833580,-461.9838505,0.00019178,2]
[370302004,1751942833600,-460.0,0.00019178,2]
[370302005,1751942833623,-460.0,0.00019178,2]
[370302006,1751942833646,-463.50654061,0.00019178,2]
[370302007,1751942833668,-460.0,0.00019178,2]
[370302008,1751942833688,-370.5840985,0.00019178,2]
[370302009,1751942833709,-495.2671998,0.00019178,2]
[370302010,1751942833732,-458.33553697,0.00019178,2]
[370302011,1751942833754,-460.0,0.00019178,2]
[370302012,1751942833774,-462.51994577,0.00019178,2]
[370302013,1751942833795,-276.15013097,0.00019178,2]
[370302014,1751942833815,-462.66453353,0.00019178,2]
[370302015,1751942833835,-267.54238639,0.00019178,2]
[370302016,1751942833855,-460.0,0.00019178,2]
[370302017,1751942833874,-460.0,0.00019178,2]
[370302018,1751942833894,-460.0,0.00019178,2]
[370302019,1751942833917,-460.0,0.00019178,2]
[370302020,1751942833939,-587.14333806,0.00019178,2]
[370302021,1751942833961,-354.71642598,0.00019178,2]
[370302022,1751942833982,-460.0,0.00019178,2]
[370302023,1751942834002,-460.0,0.00019178,2]
[370302024,1751942834022,-282.37121834,0.00019178,2]
[370302025,1751942834043,-471.98281031,0.00019178,2]
[370302026,1751942834064,-199.76027221,0.00019178,2]
[370302027,1751942834084,-190.67958277,0.00019178,2]
[370302047,1751942956084,-414.46103597,0.000189,2]
[370302048,1751942956106,-302.57643837,0.00019,2]
[370302049,1751942956129,-356.67692467,0.00019078,2]
[370302110,1751943038710,-214.43624439,0.00019078,2]
[370302112,1751943038720,-300.0,0.00019177,2]
[370302114,1751943038730,-497.93481252,0.00019177,2]
[370302139,1751943039464,-75.06518748,0.00019177,2]
[370302141,1751943039473,-189.88542532,0.00019177,2]
[370302143,1751943039483,-447.30858667,0.00019177,2]
[370302145,1751943039493,-500.0,0.00019177,2]
[370302147,1751943039502,-269.32041723,0.00019178,2]
[370302148,1751943039513,-462.86926636,0.00019178,2]
[370302149,1751943039523,-460.0,0.00019178,2]
[370302150,1751943039532,-275.0430215,0.00019178,2]
[370302151,1751943039541,-460.0,0.00019178,2]
[370302153,1751943039551,-464.53423358,0.00019178,2]
[370302155,1751943039561,-467.32894536,0.00019178,2]
[370302157,1751943039570,-432.954548,0.00019178,2]
[370302170,1751943039681,-36.18989556,0.00019178,2]
[370302172,1751943039691,-465.11057488,0.00019178,2]
[370302175,1751943039713,-234.50473915,0.00019178,2]
[370302178,1751943039728,-470.88986305,0.00019178,2]
[370302180,1751943039743,-461.66621835,0.00019178,2]
[370302182,1751943039756,-504.51550246,0.00019178,2]
[370302185,1751943039770,-209.11719309,0.00019178,2]
[370302187,1751943039783,-466.15892107,0.00019178,2]
[370302189,1751943039794,-6213.62424054,0.00019178,2]
[370302192,1751943039805,-460.0,0.00019178,2]
[370302194,1751943039819,-460.0,0.00019178,2]
[370302196,1751943039832,-472.29889225,0.00019178,2]
[370302199,1751943039844,-460.0,0.00019178,2]
[370302201,1751943039856,-460.0,0.00019178,2]
[370302203,1751943039869,-460.0,0.00019178,2]
[370302206,1751943039882,-460.0,0.00019178,2]
[370302208,1751943039894,-467.48389474,0.00019178,2]
[370302211,1751943039907,-461.93495698,0.00019178,2]
[370302213,1751943039919,-208.78718637,0.00019178,2]
[370302215,1751943039932,-467.95948801,0.00019178,2]
[370302218,1751943039944,-464.30991959,0.00019178,2]
[370302220,1751943039957,-267.47434019,0.00019178,2]
[370302222,1751943039969,-460.0,0.00019178,2]
[370302225,1751943039981,-460.0,0.00019178,2]
[370302227,1751943039992,-460.0,0.00019178,2]
[370302229,1751943040005,-460.0,0.00019178,2]
[370302232,1751943040020,-164.92224061,0.00019178,2]
[370302234,1751943040033,-460.89879945,0.00019178,2]
[370302237,1751943040045,-463.44194982,0.00019178,2]
[370302239,1751943040058,-460.0,0.00019178,2]
[370302241,1751943040070,-460.0,0.00019178,2]
[370302243,1751943040082,-467.43141714,0.00019178,2]
[370302246,1751943040094,-462.67569026,0.00019178,2]
[370302248,1751943040107,-465.07376642,0.00019178,2]
[370302250,1751943040121,-463.73231789,0.00019178,2]
[370302253,1751943040132,-460.0,0.00019178,2]
[370302255,1751943040143,-460.0,0.00019178,2]
[370302257,1751943040155,-463.52101001,0.00019178,2]
[370302260,1751943040166,-460.0,0.00019178,2]
[370302262,1751943040178,-461.74212147,0.00019178,2]
[370302265,1751943040189,-462.12822993,0.00019178,2]
[370302267,1751943040201,-460.0,0.00019178,2]
[370302269,1751943040213,-460.0,0.00019178,2]
[370302272,1751943040225,-222.66706532,0.00019178,2]
[370302274,1751943040236,-465.07092259,0.00019178,2]
[370302276,1751943040248,-432.31898986,0.00019178,2]
[370302278,1751943040260,-470.78668907,0.00019178,2]
[370302281,1751943040272,-464.17256193,0.00019178,2]
[370302283,1751943040285,-460.0,0.00019178,2]
[370302285,1751943040297,-460.0,0.00019178,2]
[370302288,1751943040310,-462.12616522,0.00019178,2]
[370302290,1751943040321,-461.50070874,0.00019178,2]
[370302292,1751943040331,-463.58043772,0.00019178,2]
[370302294,1751943040341,-507.04652508,0.00019178,2]
[370302296,1751943040351,-458.15,0.00019178,2]
[370302298,1751943040361,-460.0,0.00019178,2]
[370302300,1751943040371,-463.94294402,0.00019178,2]
[370302303,1751943040384,-467.09689441,0.00019178,2]
[370302305,1751943040396,-460.0,0.00019178,2]
[370302307,1751943040408,-460.0,0.00019178,2]
[370302310,1751943040420,-460.0,0.00019178,2]
[370302312,1751943040431,-463.50740251,0.00019178,2]
[370302314,1751943040440,-460.0,0.00019178,2]
[370302316,1751943040451,-460.0,0.00019178,2]
[370302318,1751943040462,-460.0,0.00019178,2]
[370302320,1751943040474,-460.0,0.00019178,2]
[370302323,1751943040487,-190.17641532,0.00019178,2]
[370302325,1751943040498,-433.00002437,0.00019178,2]
[370302327,1751943040509,-460.0,0.00019178,2]
[370302329,1751943040519,-464.10817881,0.00019178,2]
[370302332,1751943040530,-395.5897342,0.00019178,2]
[370302334,1751943040540,-460.0,0.00019178,2]
[370302336,1751943040551,-460.0,0.00019178,2]
[370302338,1751943040562,-464.11521349,0.00019178,2]
[370302340,1751943040572,-465.54613839,0.00019178,2]
[370302342,1751943040583,-460.0,0.00019178,2]
[370302345,1751943040598,-460.0,0.00019178,2]
[370302347,1751943040610,-460.0,0.00019178,2]
[370302350,1751943040622,-460.0,0.00019178,2]
[370302352,1751943040633,-460.0,0.00019178,2]
[370302354,1751943040644,-460.0,0.00019178,2]
[370302356,1751943040655,-462.03784257,0.00019178,2]
[370302358,1751943040666,-464.2906459,0.00019178,2]
[370302362,1751943040678,-606.57173238,0.00019178,2]
[370302364,1751943040689,-460.0,0.00019178,2]
[370302366,1751943040700,-474.83791672,0.00019178,2]
[370302368,1751943040711,-460.0,0.00019178,2]
[370302370,1751943040723,-460.0,0.00019178,2]
[370302373,1751943040734,-468.77197955,0.00019178,2]
[370302375,1751943040745,-461.06103381,0.00019178,2]
[370302377,1751943040756,-463.30452327,0.00019178,2]
[370302379,1751943040768,-505.56276505,0.00019178,2]
[370302382,1751943040780,-460.0,0.00019178,2]
[370302384,1751943040791,-465.97943144,0.00019178,2]
[370302386,1751943040803,-2558.03,0.00019178,2]
[370302388,1751943040815,-465.29599998,0.00019178,2]
[370302391,1751943040826,-462.98166838,0.00019178,2]
[370302393,1751943040837,-465.43422577,0.00019178,2]
[370302395,1751943040848,-468.85035695,0.00019178,2]
[370302397,1751943040859,-460.0,0.00019178,2]
[370302399,1751943040871,-465.51176008,0.00019178,2]
[370302402,1751943040882,-474.12891778,0.00019178,2]
[370302404,1751943040892,-463.48983798,0.00019178,2]
[370302406,1751943040907,-465.24304013,0.00019178,2]
[370302408,1751943040918,-460.0,0.00019178,2]
[370302410,1751943040930,-469.48549931,0.00019178,2]
[370302413,1751943040940,-454.90833908,0.00019178,2]
[370302415,1751943040951,-464.66929362,0.00019178,2]
[370302417,1751943040962,-540.22559706,0.00019178,2]
[370302419,1751943040974,-465.68682564,0.00019178,2]
[370302421,1751943040984,-468.16072765,0.00019178,2]
[370302424,1751943040995,-464.40855584,0.00019178,2]
[370302426,1751943041007,-460.0,0.00019178,2]
[370302428,1751943041018,-460.0,0.00019178,2]
[370302430,1751943041030,-465.50831703,0.00019178,2]
[370302432,1751943041040,-518.40908832,0.00019178,2]
[370302434,1751943041051,-463.46244386,0.00019178,2]
[370302437,1751943041063,-463.47656963,0.00019178,2]
[370302439,1751943041074,-460.0,0.00019178,2]
[370302441,1751943041086,-465.54940075,0.00019178,2]
[370302443,1751943041097,-437.42793756,0.00019178,2]
[370302445,1751943041108,-466.88386698,0.00019178,2]
[370302448,1751943041120,-464.26090463,0.00019178,2]
[370302450,1751943041133,-357.15059038,0.00019178,2]
[370302452,1751943041144,-460.0,0.00019178,2]
[370302454,1751943041159,-460.0,0.00019178,2]
[370302456,1751943041170,-460.0,0.00019178,2]
[370302458,1751943041181,-468.29440015,0.00019178,2]
[370302460,1751943041192,-463.07740669,0.00019178,2]
[370302462,1751943041203,-463.40937924,0.00019178,2]
[370302465,1751943041215,-460.0,0.00019178,2]
[370302467,1751943041227,-460.0,0.00019178,2]
[370302469,1751943041242,-460.0,0.00019178,2]
[370302471,1751943041253,-467.63498927,0.00019178,2]
[370302472,1751943041265,-460.0,0.00019178,2]
[370302473,1751943041276,-460.0,0.00019178,2]
[370302474,1751943041287,-475.53424792,0.00019178,2]
[370302475,1751943041297,-460.0,0.00019178,2]
[370302476,1751943041306,-462.97327018,0.00019178,2]
[370302477,1751943041315,-460.0,0.00019178,2]
[370302482,1751943041526,-460.0,0.00019178,2]
[370302485,1751943041542,-460.89231289,0.00019178,2]
[370302487,1751943041553,-460.0,0.00019178,2]
[370302489,1751943041563,-461.66690986,0.00019178,2]
[370302491,1751943041573,-460.0,0.00019178,2]
[370302493,1751943041583,-460.0,0.00019178,2]
[370302495,1751943041592,-460.0,0.00019178,2]
[370302497,1751943041602,-462.15411236,0.00019178,2]
[370302499,1751943041612,-460.0,0.00019178,2]
[370302501,1751943041622,-461.38676484,0.00019178,2]
[370302503,1751943041631,-460.0,0.00019178,2]
[370302505,1751943041641,-460.0,0.00019178,2]
[370302507,1751943041652,-469.29015527,0.00019178,2]
[370302509,1751943041661,-460.0,0.00019178,2]
[370302511,1751943041670,-460.0,0.00019178,2]
[370302513,1751943041680,-978.73,0.00019178,2]
[370302515,1751943041689,-461.46909843,0.00019178,2]
[370302517,1751943041699,-195.11098892,0.00019178,2]
[370302519,1751943041708,-756.37,0.00019178,2]
[370302521,1751943041717,-470.88352197,0.00019178,2]
[370302523,1751943041727,-460.0,0.00019178,2]
[370302525,1751943041737,-460.0,0.00019178,2]
[370302527,1751943041746,-462.64804636,0.00019178,2]
[370302529,1751943041756,-460.0,0.00019178,2]
[370302531,1751943041765,-917.58,0.00019178,2]
[370302533,1751943041778,-1157.68,0.00019178,2]
[370302535,1751943041787,-466.24001548,0.00019178,2]
[370302537,1751943041797,-460.0,0.00019178,2]
[370302539,1751943041806,-460.0,0.00019178,2]
[370302540,1751943041816,-460.0,0.00019178,2]
[370302542,1751943041826,-460.0,0.00019178,2]
[370302544,1751943041835,-461.6125082,0.00019178,2]
[370302546,1751943041844,-461.45712156,0.00019178,2]
[370302548,1751943041854,-474.0523019,0.00019178,2]
[370302550,1751943041864,-460.0,0.00019178,2]
[370302552,1751943041873,-460.0,0.00019178,2]
[370302554,1751943041882,-465.73868289,0.00019178,2]
[370302556,1751943041891,-1590.84,0.00019178,2]
[370302558,1751943041901,-460.0,0.00019178,2]
[370302560,1751943041910,-460.0,0.00019178,2]
[370302562,1751943041920,-460.0,0.00019178,2]
[370302564,1751943041930,-461.19441714,0.00019178,2]
[370302566,1751943041944,-559.93,0.00019178,2]
[370302569,1751943041954,-460.0,0.00019178,2]
[370302571,1751943041963,-607.25835209,0.00019178,2]
[370302573,1751943041973,-460.0,0.00019178,2]
[370302574,1751943041982,-462.66719832,0.00019178,2]
[370302576,1751943041992,-463.25034072,0.00019178,2]
[370302579,1751943042001,-471.39575035,0.00019178,2]
[370302581,1751943042012,-460.0,0.00019178,2]
[370302583,1751943042021,-460.0,0.00019178,2]
[370302585,1751943042031,-464.19072975,0.00019178,2]
[370302587,1751943042041,-460.0,0.00019178,2]
[370302589,1751943042051,-1013.26,0.00019178,2]
[370302591,1751943042060,-462.23529631,0.00019178,2]
[370302593,1751943042070,-460.0,0.00019178,2]
[370302594,1751943042079,-1348.5,0.00019178,2]
[370302596,1751943042089,-460.0,0.00019178,2]
[370302598,1751943042099,-460.0,0.00019178,2]
[370302601,1751943042108,-460.0,0.00019178,2]
[370302603,1751943042119,-460.0,0.00019178,2]
[370302605,1751943042129,-460.0,0.00019178,2]
[370302607,1751943042138,-460.0,0.00019178,2]
[370302609,1751943042148,-465.55937626,0.00019178,2]